bitfinex/quotes_SOLUSD_20250307
["timestamp","ask_amount","ask_price","bid_price","bid_amount"]
[1741362813760,52.06809111,145.13,145.09,0.14216157]
[1741362813964,52.06809111,145.12,145.08,0.14216157]
[1741362814192,52.06809111,145.13,145.08,0.14216157]
[1741362814385,82.8,145.15,145.08,0.14216157]
[1741362814386,3.46858106,145.17,145.11,0.14216157]
[1741362814572,0.03,145.17,145.11,0.14216157]
[1741362814773,52.06809111,145.16,145.11,0.14216157]
[1741362815087,52.06809111,145.14,145.09,0.14216157]
[1741362815293,52.06809111,145.13,145.09,0.14216157]
[1741362815463,52.06809111,145.15,145.09,7.03426157]
[1741362815667,18.64964886,145.16,145.09,52.06809111]
[1741362815867,52.06809111,145.13,145.08,10.7]
[1741362816061,52.06809111,145.14,145.08,10.7]
[1741362816275,52.06809111,145.15,145.09,0.14216157]
[1741362816584,52.06809111,145.14,145.08,62.76809111]
[1741362816791,52.06809111,145.14,145.13,312.14216157]
[1741362817193,52.06809111,145.15,145.13,312.14216157]
[1741362817489,0.03,145.17,145.12,0.14216157]
[1741362817665,0.03,145.17,145.12,52.21025268]
[1741362818084,0.03,145.17,145.14,0.14216157]
[1741362818784,0.03,145.17,145.14,52.21025268]
[1741362818993,0.03,145.17,145.14,52.06809111]
[1741362819203,0.03,145.17,145.15,0.14216157]
[1741362819400,0.03,145.17,145.16,59.09915268]
[1741362819768,0.03,145.17,145.16,78.03312468]
[1741362820369,0.03,145.17,145.16,390.03312468]
[1741362820565,0.03,145.17,145.16,364.21025268]
[1741362820798,0.03,145.17,145.16,364.49457582]
[1741362821002,1.5641,145.3,145.16,364.49457582]
[1741362821003,0.03,145.32,145.2,18.79181043]
[1741362821169,52.09809111,145.32,145.25,52.06809111]
[1741362821375,0.03,145.32,145.27,18.79181043]
[1741362821574,0.03,145.32,145.31,71.14422468]
[1741362822087,0.03,145.32,145.31,52.21025268]
[1741362823099,0.03,145.32,145.31,71.14422468]
[1741362823803,0.03,145.32,145.31,52.21025268]
[1741362824166,0.03,145.32,145.31,383.14422468]
[1741362824475,149.18,145.44,145.33,39.07613357]
[1741362824673,20.0,145.41,145.33,52.21025268]
[1741362824877,52.06809111,145.37,145.29,10.52]
[1741362825181,52.06809111,145.35,145.3,0.14216157]
[1741362825378,52.06809111,145.37,145.31,52.06809111]
[1741362825601,20.0,145.4,145.31,52.06809111]
[1741362825903,52.09809111,145.34,145.28,52.06809111]
[1741362826106,52.09809111,145.34,145.26,0.21324235]
[1741362826107,52.06809111,145.32,145.26,0.21324235]
[1741362826400,52.09809111,145.34,145.26,7.09714235]
[1741362826602,0.03,145.34,145.3,0.14216157]
[1741362826971,0.03,145.34,145.32,52.06809111]
[1741362827280,0.03,145.34,145.33,71.14422468]
[1741362827586,0.03,145.34,145.33,0.14216157]
[1741362827775,0.03,145.34,145.33,312.14216157]
[1741362828483,0.03,145.34,145.33,312.0]
[1741362828702,52.09809111,145.34,145.33,312.0]
[1741362828903,52.09809111,145.34,145.33,312.14216157]
[1741362829218,52.09809111,145.34,145.33,312.0]
[1741362829219,0.03,145.34,145.33,312.0]
[1741362829409,0.03,145.34,145.33,312.14216157]
[1741362829718,52.09809111,145.34,145.33,312.14216157]
[1741362829920,52.09809111,145.34,145.33,312.0]
[1741362830417,0.03,145.34,145.33,312.14216157]
[1741362830618,0.03,145.34,145.33,364.21025268]
[1741362830814,0.03,145.34,145.33,383.14422468]
[1741362831591,0.03,145.34,145.33,312.14216157]
[1741362831820,0.03,145.34,145.33,383.14422468]
[1741362832024,0.03,145.34,145.33,390.02502468]
[1741362832803,0.03,145.34,145.33,383.14422468]
[1741362833116,0.03,145.34,145.33,312.0]
[1741362833428,0.03,145.34,145.33,312.14216157]
[1741362833604,0.03,145.34,145.33,312.0]
[1741362835317,0.03,145.34,145.33,312.14216157]
[1741362836219,0.03,145.34,145.33,312.0]
[1741362836424,0.03,145.34,145.33,312.14216157]
[1741362837819,0.03,145.34,145.33,371.09105268]
[1741362838018,0.03,145.34,145.33,390.02502468]
[1741362838697,0.03,145.49,145.39,0.14216157]
[1741362838911,0.03,145.49,145.43,0.14216157]
[1741362838912,52.09809111,145.49,145.43,0.14216157]
[1741362839127,0.03,145.49,145.43,52.21025268]
[1741362839308,52.09809111,145.49,145.43,52.21025268]
[1741362839517,0.03,145.49,145.45,0.14216157]
[1741362839707,0.03,145.49,145.46,52.06809111]
[1741362839910,0.03,145.49,145.47,0.14216157]
[1741362840421,0.03,145.49,145.48,18.79181043]
[1741362840620,0.03,145.49,145.48,71.14422468]
[1741362840814,92.95278886,145.63,145.55,0.14216157]
[1741362841017,10.15278886,145.63,145.6,20.14216157]
[1741362841225,10.15278886,145.63,145.59,0.14216157]
[1741362841537,62.22087997,145.63,145.59,0.14216157]
[1741362841713,52.06809111,145.62,145.57,0.14216157]
[1741362842036,0.03,145.63,145.57,0.14216157]
[1741362842202,0.03,145.63,145.61,0.14216157]
[1741362842404,0.03,145.63,145.62,0.14216157]
[1741362842703,52.09809111,145.63,145.62,0.14216157]
[1741362842906,0.03,145.63,145.58,19.07613357]
[1741362843101,0.03,145.63,145.58,18.64964886]
[1741362843310,0.03,145.63,145.58,52.21025268]
[1741362843525,20.03,145.63,145.58,0.14216157]
[1741362843742,52.06809111,145.59,145.5,0.21324235]
[1741362843943,52.06809111,145.56,145.5,18.86289121]
[1741362844246,0.03,145.63,145.52,52.06809111]
[1741362844429,0.03,145.63,145.62,52.21025268]
[1741362844739,0.03,145.63,145.62,312.14216157]
[1741362845667,0.03,145.63,145.62,312.0]
[1741362846144,0.03,145.63,145.62,312.14216157]
[1741362847723,0.03,145.63,145.62,383.14422468]
[1741362848159,0.03,145.63,145.62,390.01132468]
[1741362848529,0.03,145.73,145.62,390.01132468]
[1741362848833,1.2017713,145.89,145.75,20.0]
[1741362848834,0.03,145.82,145.75,20.0]
[1741362849060,0.03,145.82,145.76,0.14216157]
[1741362849229,0.03,145.82,145.79,52.06809111]
[1741362849430,0.03,145.82,145.8,0.14216157]
[1741362849646,0.03,145.82,145.8,52.21025268]
[1741362849863,0.03,145.82,145.81,52.21025268]
[1741362850329,0.03,145.82,145.81,52.49457582]
[1741362850559,0.03,145.82,145.81,0.14216157]
[1741362850767,0.03,145.82,145.81,72.21025268]
[1741362850962,0.03,145.82,145.81,0.14216157]
[1741362850963,52.09809111,145.82,145.81,0.14216157]
[1741362851368,0.03,145.82,145.81,52.21025268]
[1741362851773,0.03,145.82,145.81,364.49457582]
[1741362852054,0.03,145.82,145.81,312.14216157]
[1741362852265,0.03,145.82,145.81,312.42648471]
[1741362852575,0.03,145.82,145.81,364.21025268]
[1741362852742,0.03,145.82,145.81,364.49457582]
[1741362852941,0.03,145.82,145.81,364.21025268]
[1741362853172,0.03,145.82,145.81,312.14216157]
[1741362853679,0.03,145.82,145.81,364.21025268]
[1741362853885,0.03,145.82,145.81,364.49457582]
[1741362854163,0.03,145.82,145.81,435.21231579]
[1741362854366,0.03,145.82,145.81,442.07051579]
[1741362854665,0.03,145.84,145.83,0.14216157]
[1741362854964,0.03,145.88,145.87,20.14216157]
[1741362855154,0.03,145.88,145.87,143.21231579]
[1741362855739,0.03,145.88,145.87,150.06771579]
[1741362856060,0.03,145.94,145.91,20.0]
[1741362856257,0.03,145.94,145.93,123.21231579]
[1741362856463,0.03,145.94,145.93,124.23958251]
[1741362856660,5.41342052,146.08,145.96,20.14216157]
[1741362856839,200.73809111,146.09,145.96,40.1031436]
[1741362857034,148.67,146.09,145.96,91.14422468]
[1741362857240,52.06809111,146.06,145.96,91.14422468]
[1741362857570,52.06809111,146.05,145.96,91.14422468]
[1741362857775,52.06809111,146.03,145.96,312.42648471]
[1741362857968,52.06809111,146.03,145.96,364.49457582]
[1741362858146,148.67,146.09,145.96,389.99532468]
[1741362858339,0.03,146.09,145.96,389.99532468]
[1741362858651,52.06809111,146.08,146.02,0.14216157]
[1741362858847,52.06809111,146.08,146.02,52.21025268]
[1741362859044,82.8,146.07,145.96,20.0]
[1741362859243,52.09809111,146.09,145.99,52.06809111]
[1741362859244,52.06809111,146.05,145.99,52.06809111]
[1741362859472,0.03,146.09,146.05,0.14216157]
[1741362859783,0.03,146.09,146.08,20.14216157]
[1741362859943,0.03,146.09,146.08,39.07613357]
[1741362860143,0.03,146.09,146.08,0.14216157]
[1741362860459,1.7678,146.21,146.16,0.14216157]
[1741362860652,1.7678,146.21,146.18,0.14216157]
[1741362861142,53.89615891,146.19,146.1,0.14216157]
[1741362861341,21.8280678,146.19,146.1,52.21025268]
[1741362861648,32.3280678,146.19,146.09,52.06809111]
[1741362861842,32.3280678,146.19,146.1,0.14216157]
[1741362862049,52.06809111,146.16,146.13,0.14216157]
[1741362862252,52.06809111,146.14,146.05,10.5]
[1741362862458,52.06809111,146.12,146.05,62.56809111]
[1741362862645,0.28432314,146.18,146.05,62.56809111]
[1741362862966,52.06809111,146.1,146.0,6.8488]
[1741362863280,20.0,146.13,146.05,52.06809111]
[1741362863561,14.3280678,146.19,146.13,0.14216157]
[1741362863562,53.89615891,146.19,146.13,0.14216157]
[1741362863774,52.06809111,146.16,146.13,0.14216157]
[1741362863944,82.8,146.18,146.07,10.6]
[1741362864142,82.8,146.18,146.07,0.28432314]
[1741362864338,81.8,146.18,146.08,0.14216157]
[1741362864565,20.0,146.14,145.99,1.02653388]
[1741362865079,3.8280678,146.19,145.99,1.02653388]
[1741362865080,1.8280678,146.19,146.12,0.14216157]
[1741362865382,1.8280678,146.19,146.16,0.14216157]
[1741362865744,52.06809111,146.18,146.16,0.14216157]
[1741362865970,52.06809111,146.17,146.1,0.14216157]
[1741362866144,52.06809111,146.17,146.12,0.14216157]
[1741362866457,1.8280678,146.19,146.15,0.14216157]
[1741362866657,52.06809111,146.18,146.15,0.14216157]
[1741362867065,52.06809111,146.16,146.09,20.0]
[1741362867243,52.06809111,146.17,146.11,52.21025268]
[1741362867448,52.06809111,146.17,146.07,18.64964886]
[1741362867449,53.89615891,146.19,146.14,0.14216157]
[1741362867666,52.06809111,146.18,146.14,0.14216157]
[1741362867843,1.8280678,146.19,146.05,25.49654886]
[1741362868165,1.8280678,146.19,146.11,52.06809111]
[1741362868486,1.8280678,146.19,146.01,6.8484]
[1741362868487,20.0,146.15,146.01,6.8484]
[1741362868693,20.0,146.15,145.98,0.21324235]
[1741362868694,38.64964886,146.11,145.98,0.21324235]
[1741362868892,52.06809111,146.01,145.98,0.21324235]
[1741362869105,52.06809111,146.0,145.87,82.71324235]
[1741362869300,52.06809111,145.99,145.89,6.8544]
[1741362869601,38.64964886,146.04,145.91,20.0]
[1741362869765,52.06809111,146.0,145.94,52.06809111]
[1741362869966,52.06809111,146.01,145.95,52.06809111]
[1741362870166,81.8,146.07,145.97,52.06809111]
[1741362870167,52.06809111,146.03,145.97,52.06809111]
[1741362870382,52.06809111,146.04,145.98,52.06809111]
[1741362870596,158.84,146.08,145.99,52.21025268]
[1741362870597,52.06809111,146.05,145.99,52.21025268]
[1741362870970,52.06809111,146.02,145.96,52.06809111]
[1741362871679,52.06809111,145.99,145.91,6.8535]
[1741362871874,20.0,146.01,145.89,10.52]
[1741362872075,52.06809111,145.99,145.93,52.06809111]
[1741362872278,81.8,146.06,145.96,0.14216157]
[1741362872475,18.64964886,146.05,145.96,0.14216157]
[1741362872774,81.8,146.06,145.89,18.64964886]
[1741362872775,18.64964886,146.03,145.89,18.64964886]
[1741362872980,20.0,146.0,145.89,18.64964886]
[1741362873196,81.8,146.04,145.93,0.42648471]
[1741362873406,52.06809111,146.0,145.95,0.14216157]
[1741362873576,52.06809111,145.99,145.93,52.06809111]
[1741362873798,52.06809111,146.01,145.96,0.14216157]
[1741362873998,52.06809111,146.02,145.97,0.14216157]
[1741362874230,52.06809111,146.03,145.97,52.21025268]
[1741362874498,52.06809111,146.01,145.96,0.14216157]
[1741362875194,81.8,146.07,145.96,0.14216157]
[1741362875394,52.06809111,146.03,145.97,52.21025268]
[1741362875601,52.06809111,146.02,145.97,0.14216157]
[1741362875827,52.06809111,146.0,145.97,0.14216157]
[1741362875996,52.06809111,145.99,145.97,0.14216157]
[1741362876197,52.06809111,145.98,145.91,52.06809111]
[1741362876429,81.8,146.05,145.88,76.06019111]
[1741362876713,52.06809111,145.98,145.93,0.14216157]
[1741362877015,52.06809111,145.97,145.93,0.14216157]
[1741362877217,52.06809111,145.97,145.91,52.06809111]
[1741362877218,52.06809111,145.96,145.9,52.21025268]
[1741362877417,52.06809111,145.96,145.91,0.14216157]
[1741362877604,52.06809111,145.94,145.87,7.10154235]
[1741362877905,52.06809111,145.95,145.87,0.24624235]
[1741362878102,52.06809111,145.91,145.88,0.14216157]
[1741362878307,52.06809111,145.91,145.87,0.24624235]
[1741362878503,52.06809111,145.95,145.87,0.033]
[1741362878695,52.06809111,145.9,145.87,0.033]
[1741362878898,52.06809111,145.88,145.87,0.033]
[1741362879214,230.1,145.97,145.87,52.10109111]
[1741362879403,52.06809111,145.94,145.89,0.14216157]
[1741362879599,52.06809111,145.95,145.89,52.21025268]
[1741362880496,52.06809111,145.93,145.87,52.10109111]
[1741362880917,52.06809111,145.93,145.88,0.14216157]
[1741362881213,230.14,146.0,145.88,0.14216157]
[1741362881214,52.06809111,145.96,145.9,52.21025268]
[1741362881726,52.06809111,145.92,145.89,0.14216157]
[1741362881911,52.06809111,145.9,145.87,0.033]
[1741362882101,52.06809111,145.92,145.87,0.033]
[1741362882293,52.06809111,145.92,145.88,0.14216157]
[1741362882500,52.06809111,145.9,145.87,0.033]
[1741362883025,52.06809111,145.92,145.87,0.17516157]
[1741362883911,52.06809111,145.9,145.87,0.033]
[1741362884221,52.06809111,145.95,145.87,0.033]
[1741362884222,20.0,145.91,145.87,0.033]
[1741362884406,20.0,145.91,145.76,6.86284235]
[1741362884407,104.13618222,145.88,145.76,0.21324235]
[1741362884606,52.06809111,145.82,145.76,0.21324235]
[1741362884807,10.28,145.87,145.76,0.21324235]
[1741362885006,15.7065591,145.87,145.76,0.21324235]
[1741362885223,18.64964886,145.86,145.76,0.21324235]
[1741362885407,52.06809111,145.8,145.76,0.21324235]
[1741362885607,18.64964886,145.86,145.76,0.21324235]
[1741362885812,52.06809111,145.81,145.76,0.21324235]
[1741362886009,52.06809111,145.79,145.75,0.033]
[1741362886203,52.06809111,145.81,145.75,0.033]
[1741362886403,20.0,145.82,145.75,0.033]
[1741362886617,81.8,145.85,145.75,0.033]
[1741362886618,10.24,145.83,145.75,0.033]
[1741362886908,18.64964886,145.82,145.75,0.033]
[1741362887102,10.24,145.83,145.75,0.033]
[1741362887103,52.06809111,145.78,145.75,0.033]
[1741362887302,10.24,145.83,145.76,0.14216157]
[1741362887534,52.06809111,145.81,145.76,0.14216157]
[1741362887827,10.24,145.83,145.76,0.14216157]
[1741362887828,52.06809111,145.8,145.76,0.14216157]
[1741362888031,52.06809111,145.77,145.75,0.033]
[1741362888239,52.06809111,145.79,145.75,0.033]
[1741362888728,52.06809111,145.8,145.75,0.033]
[1741362888927,52.06809111,145.81,145.75,52.24325268]
[1741362889230,52.06809111,145.81,145.75,0.17516157]
[1741362889529,52.06809111,145.77,145.75,0.033]
[1741362890027,52.06809111,145.78,145.75,0.033]
[1741362890332,52.06809111,145.81,145.76,0.14216157]
[1741362890516,52.06809111,145.82,145.76,0.14216157]
[1741362890715,52.06809111,145.81,145.76,0.14216157]
[1741362891031,52.06809111,145.85,145.79,52.21025268]
[1741362891331,158.5,145.88,145.79,52.21025268]
[1741362891505,158.5,145.88,145.77,0.14216157]
[1741362891506,148.36,145.88,145.82,52.21025268]
[1741362891711,52.06809111,145.86,145.82,0.14216157]
[1741362891920,148.36,145.88,145.82,0.14216157]
[1741362891921,52.06809111,145.83,145.82,0.14216157]
[1741362892112,200.42809111,145.88,145.78,0.14216157]
[1741362892313,200.42809111,145.88,145.82,0.14216157]
[1741362892314,52.06809111,145.87,145.82,0.14216157]
[1741362892613,148.36,145.88,145.82,52.21025268]
[1741362892822,5.48590712,145.91,145.85,0.14216157]
[1741362893129,5.48590712,145.91,145.85,52.49457582]
[1741362893130,52.06809111,145.91,145.85,52.49457582]
[1741362893333,52.06809111,145.92,145.85,52.21025268]
[1741362893641,52.06809111,145.88,145.85,0.14216157]
[1741362893822,52.06809111,145.86,145.85,0.14216157]
[1741362894144,52.06809111,145.86,145.81,0.14216157]
[1741362894314,52.06809111,145.84,145.81,0.14216157]
[1741362894515,52.06809111,145.84,145.8,20.0]
[1741362894725,52.06809111,145.85,145.81,0.14216157]
[1741362894928,18.64964886,145.91,145.81,0.14216157]
[1741362895105,52.06809111,145.85,145.81,0.14216157]
[1741362895311,18.64964886,145.91,145.82,0.14216157]
[1741362895530,52.06809111,145.89,145.84,0.14216157]
[1741362895727,15.65640936,145.93,145.84,0.14216157]
[1741362896114,52.06809111,145.9,145.84,0.42648471]
[1741362896338,52.06809111,145.91,145.86,0.14216157]
[1741362896544,0.03,145.88,145.86,0.14216157]
[1741362897334,0.03,145.88,145.84,0.14216157]
[1741362897835,52.09809111,145.88,145.84,0.14216157]
[1741362900014,52.06809111,145.86,145.81,0.14216157]
[1741362900232,52.06809111,145.85,145.78,52.10109111]
[1741362900439,52.06809111,145.82,145.78,0.033]
[1741362900639,52.06809111,145.79,145.78,0.033]
[1741362901017,230.26,145.85,145.78,0.033]
[1741362901219,52.06809111,145.79,145.78,0.033]
[1741362901417,18.64964886,145.84,145.78,0.033]
[1741362901617,148.46,145.85,145.79,52.06809111]
[1741362901818,200.52809111,145.85,145.8,0.14216157]
[1741362902221,81.83,145.88,145.84,0.14216157]
[1741362902222,0.03,145.88,145.84,0.14216157]
[1741362902422,0.03,145.88,145.84,52.06809111]
[1741362902635,0.03,145.88,145.85,0.14216157]
[1741362903120,52.09809111,145.88,145.83,0.14216157]
[1741362903730,0.03,145.88,145.84,0.14216157]
[1741362903930,0.03,145.88,145.87,52.21025268]
[1741362905350,52.06809111,145.93,145.92,0.14216157]
[1741362905539,52.06809111,145.93,145.85,6.8559]
[1741362905540,52.06809111,145.93,145.85,0.14216157]
[1741362905744,52.06809111,145.88,145.78,0.033]
[1741362905921,52.06809111,145.88,145.82,52.06809111]
[1741362906122,9.94,145.93,145.8,1.02833955]
[1741362906333,52.06809111,145.94,145.85,0.28432314]
[1741362906622,52.06809111,145.92,145.89,0.14216157]
[1741362906842,1.6478,145.97,145.89,0.42648471]
[1741362907043,52.06809111,145.96,145.91,0.14216157]
[1741362907246,62.00809111,145.98,145.93,0.14216157]
[1741362907455,52.06809111,145.94,145.89,0.14216157]
[1741362907638,148.48,145.99,145.89,52.49457582]
[1741362907948,148.48,145.99,145.94,0.14216157]
[1741362907949,200.54809111,145.99,145.94,0.14216157]
[1741362908152,52.06809111,145.99,145.94,0.14216157]
[1741362908322,52.06809111,145.95,145.87,0.21324235]
[1741362908522,52.06809111,145.88,145.79,6.8591]
[1741362908718,52.06809111,145.82,145.78,0.033]
[1741362908938,28.56964886,145.91,145.78,52.10109111]
[1741362908939,52.06809111,145.84,145.78,52.10109111]
[1741362909143,81.8,145.89,145.78,0.033]
[1741362909344,52.06809111,145.82,145.78,0.033]
[1741362909558,52.06809111,145.81,145.78,0.033]
[1741362909749,52.06809111,145.8,145.78,0.033]
[1741362910159,81.8,145.87,145.78,0.033]
[1741362910160,52.06809111,145.79,145.78,0.033]
[1741362910464,52.06809111,145.81,145.78,0.033]
[1741362910755,148.46,145.86,145.79,52.21025268]
[1741362910959,52.06809111,145.85,145.79,52.21025268]
[1741362911136,148.46,145.86,145.79,0.14216157]
[1741362911346,52.06809111,145.81,145.78,0.033]
[1741362911534,52.06809111,145.8,145.78,0.033]
[1741362912149,52.06809111,145.79,145.78,0.033]
[1741362912776,81.8,145.85,145.78,0.033]
[1741362912937,52.06809111,145.79,145.78,0.033]
[1741362914467,70.71773997,145.79,145.78,0.033]
[1741362914764,20.0,145.76,145.75,0.033]
[1741362914998,72.06809111,145.76,145.75,0.033]
[1741362915136,1.6163,145.8,145.75,0.033]
[1741362915461,52.06809111,145.78,145.75,0.033]
[1741362915935,52.06809111,145.8,145.75,0.17516157]
[1741362916142,52.06809111,145.78,145.75,0.033]
[1741362916341,52.06809111,145.77,145.75,0.033]
[1741362916547,52.06809111,145.76,145.75,0.033]
[1741362917455,82.8,145.8,145.75,0.033]
[1741362917635,52.06809111,145.77,145.75,0.033]
[1741362917836,52.06809111,145.76,145.75,0.033]
[1741362918033,52.35241425,145.76,145.75,0.0001]
[1741362918236,52.35241425,145.76,145.72,0.033]
[1741362918237,18.64964886,145.75,145.72,0.033]
[1741362918460,52.06809111,145.73,145.72,0.033]
[1741362918899,82.8,145.77,145.72,0.033]
[1741362919105,52.06809111,145.73,145.72,0.033]
[1741362920203,52.06809111,145.73,145.66,0.033]
[1741362920204,71.00206311,145.73,145.66,0.033]
[1741362920497,18.64964886,145.72,145.66,0.033]
[1741362920701,210.32809111,145.74,145.66,0.033]
[1741362920878,158.26,145.74,145.67,52.21025268]
[1741362921386,52.06809111,145.72,145.67,0.14216157]
[1741362921570,52.06809111,145.68,145.66,0.033]
[1741362921761,52.06809111,145.67,145.66,0.033]
[1741362922085,52.06809111,145.7,145.66,0.033]
[1741362922287,52.06809111,145.7,145.66,6.8982]
[1741362922504,52.06809111,145.71,145.66,0.17516157]
[1741362922900,52.06809111,145.7,145.66,0.17516157]
[1741362923067,158.26,145.74,145.67,52.21025268]
[1741362923384,52.06809111,145.71,145.67,0.14216157]
[1741362923589,52.06809111,145.72,145.67,0.14216157]
[1741362923792,52.06809111,145.7,145.66,0.17516157]
[1741362923985,52.06809111,145.68,145.66,0.17516157]
[1741362924489,52.06809111,145.69,145.66,0.033]
[1741362924792,52.06809111,145.72,145.68,0.14216157]
[1741362925094,52.06809111,145.71,145.68,0.14216157]
[1741362925391,52.06809111,145.74,145.66,0.033]
[1741362925392,52.06809111,145.69,145.66,0.033]
[1741362925789,52.06809111,145.7,145.66,0.033]
[1741362925993,82.8,145.75,145.66,52.24325268]
[1741362925994,52.06809111,145.72,145.66,52.24325268]
[1741362926393,52.06809111,145.71,145.66,0.17516157]
[1741362926576,52.06809111,145.71,145.66,7.04036157]
[1741362926779,18.46470542,145.75,145.69,52.06809111]
[1741362926981,0.03,145.76,145.71,0.14216157]
[1741362927178,0.03,145.76,145.71,52.21025268]
[1741362927376,0.03,145.76,145.73,0.14216157]
[1741362928077,0.03,145.76,145.72,0.14216157]
[1741362928403,0.03,145.76,145.72,312.14216157]
[1741362929004,52.06809111,145.74,145.7,0.14216157]
[1741362929198,52.09809111,145.76,145.7,52.21025268]
[1741362929507,0.03,145.76,145.72,0.14216157]
[1741362929677,52.06809111,145.75,145.72,0.14216157]
[1741362929870,0.03,145.76,145.7,0.14216157]
[1741362930072,52.06809111,145.72,145.67,52.06809111]
[1741362930301,52.06809111,145.74,145.66,0.033]
[1741362930487,52.06809111,145.74,145.66,6.8982]
[1741362930689,82.83,145.76,145.68,52.06809111]
[1741362930888,52.06809111,145.74,145.66,6.8982]
[1741362931107,52.06809111,145.71,145.66,0.033]
[1741362931305,52.06809111,145.74,145.66,0.033]
[1741362931488,52.06809111,145.72,145.66,0.033]
[1741362931684,52.06809111,145.71,145.66,0.033]
[1741362931890,52.06809111,145.67,145.66,0.033]
[1741362932298,104.13618222,145.67,145.66,0.033]
[1741362932491,82.8,145.72,145.66,0.033]
[1741362932819,52.06809111,145.67,145.66,0.033]
[1741362933420,122.78583108,145.67,145.66,0.033]
[1741362933589,122.78583108,145.67,145.63,0.033]
[1741362933808,52.06809111,145.64,145.63,0.033]
[1741362934428,5.50780175,145.69,145.63,0.033]
[1741362934608,52.06809111,145.67,145.63,0.033]
[1741362935006,8.1473,145.71,145.65,52.06809111]
[1741362935007,52.06809111,145.71,145.65,52.06809111]
[1741362935197,18.64964886,145.75,145.66,52.21025268]
[1741362935397,52.06809111,145.71,145.67,0.14216157]
[1741362935600,52.06809111,145.68,145.67,0.14216157]
[1741362935937,134.86809111,145.74,145.64,52.21025268]
[1741362936140,52.06809111,145.69,145.64,0.14216157]
[1741362936501,52.06809111,145.71,145.66,0.14216157]
[1741362936716,52.06809111,145.72,145.66,52.21025268]
[1741362936910,52.06809111,145.69,145.66,0.14216157]
[1741362937224,52.06809111,145.69,145.63,58.96769111]
[1741362937225,52.06809111,145.68,145.64,0.14216157]
[1741362937414,52.06809111,145.67,145.64,0.14216157]
[1741362937612,52.06809111,145.66,145.63,0.033]
[1741362937813,52.06809111,145.64,145.63,0.033]
[1741362938422,70.71773997,145.64,145.63,0.033]
[1741362939100,70.71773997,145.64,145.63,0.0001]
[1741362939101,123.07015422,145.64,145.63,0.0001]
[1741362939345,20.0,145.6,145.55,0.033]
[1741362939639,52.06809111,145.56,145.55,0.033]
[1741362939923,52.06809111,145.59,145.55,0.033]
[1741362940130,52.06809111,145.57,145.55,0.033]
[1741362940425,52.06809111,145.56,145.55,0.033]
[1741362941624,70.71773997,145.56,145.55,0.033]
[1741362942023,52.06809111,145.56,145.55,0.033]
[1741362942525,70.71773997,145.56,145.55,0.033]
[1741362942930,71.00206311,145.56,145.55,0.033]
[1741362943812,20.0,145.52,145.47,0.033]
[1741362944014,52.06809111,145.48,145.47,0.033]
[1741362944212,18.64964886,145.52,145.47,0.033]
[1741362944434,52.06809111,145.48,145.47,0.033]
[1741362944938,52.06809111,145.49,145.47,0.033]
[1741362945231,52.06809111,145.5,145.47,0.033]
[1741362945831,52.06809111,145.48,145.47,0.033]
[1741362946027,18.64964886,145.51,145.47,0.033]
[1741362946205,52.06809111,145.48,145.47,0.033]
[1741362946742,52.06809111,145.49,145.47,0.033]
[1741362947421,52.06809111,145.48,145.47,0.033]
[1741362948507,82.8,145.52,145.47,0.033]
[1741362948707,52.06809111,145.5,145.47,0.033]
[1741362948907,52.06809111,145.48,145.47,0.033]
[1741362949626,52.06809111,145.49,145.47,0.033]
[1741362950129,82.8,145.52,145.47,0.033]
[1741362950130,52.06809111,145.48,145.47,0.033]
[1741362950338,18.64964886,145.51,145.47,0.033]
[1741362950541,101.44964886,145.52,145.47,0.033]
[1741362950542,52.06809111,145.49,145.47,0.033]
[1741362951411,52.06809111,145.48,145.47,0.033]
[1741362952419,82.8,145.51,145.47,0.033]
[1741362952624,52.06809111,145.48,145.47,0.033]
[1741362952831,0.28432314,145.47,145.36,0.21324235]
[1741362953138,52.06809111,145.39,145.33,58.94889111]
[1741362953321,52.06809111,145.39,145.33,76.15109111]
[1741362953635,52.06809111,145.39,145.33,58.94889111]
[1741362953808,52.06809111,145.4,145.34,52.06809111]